lending/lending_fUSD_20250917
["ID","MTS","AMOUNT","RATE_DAILY","PERIOD"]
[385921375,1758135040205,-515.43,0.00024062,2]
[385921376,1758135040215,-248.71531821,0.0002407,2]
[385921377,1758135040224,-322.6107,0.0002407,2]
[385921378,1758135040234,-400.0,0.00024072,2]
[385921379,1758135040243,-550.47,0.00024072,2]
[385921380,1758135040252,-713.05,0.00024072,2]
[385921381,1758135040262,-456.34,0.00024072,2]
[385921382,1758135040272,-400.0,0.00024072,2]
[385921383,1758135040282,-467.82,0.00024072,2]
[385921384,1758135040291,-400.0,0.00024072,2]
[385921385,1758135040301,-400.0,0.00024072,2]
[385921386,1758135040310,-1637.35,0.00024072,2]
[385921387,1758135040319,-400.0,0.00024072,2]
[385921388,1758135040329,-400.0,0.00024072,2]
[385921389,1758135040339,-400.0,0.00024072,2]
[385921390,1758135040349,-400.0,0.00024072,2]
[385921391,1758135040359,-400.0,0.00024072,2]
[385921392,1758135040368,-400.0,0.00024072,2]
[385921393,1758135040378,-400.0,0.00024072,2]
[385921394,1758135040387,-300.0,0.00024072,2]
[385921395,1758135040397,-400.0,0.00024072,2]
[385921396,1758135040406,-400.0,0.00024072,2]
[385921397,1758135040416,-400.0,0.00024072,2]
[385921398,1758135040425,-10000.0,0.00024073,2]
[385921399,1758135040435,-621.03299283,0.00024073,2]
[385921400,1758135040444,-316.65826171,0.00024073,2]
[385921401,1758135040453,-195.0,0.00024087,2]
[385921402,1758135040463,-195.0,0.00024087,2]
[385921403,1758135040472,-150.0,0.00024087,2]
[385921404,1758135040482,-150.0,0.00024095,4]
[385921405,1758135040491,-2000.0,0.000241,2]
[385921406,1758135040501,-150.0,0.00024149,2]
[385921407,1758135040511,-259.03840937,0.0002415,2]
[385921408,1758135040520,-330.14699233,0.00024152,2]
[385921409,1758135040530,-401.2555753,0.00024153,2]
[385921410,1758135040539,-472.36415826,0.00024155,2]
[385921411,1758135040549,-543.47274122,0.00024157,2]
[385921412,1758135040558,-614.58132419,0.00024158,2]
[385921413,1758135040568,-685.68990715,0.0002416,2]
[385921414,1758135040577,-756.79849011,0.00024161,2]
[385921415,1758135040587,-827.90707307,0.00024163,2]
[385921416,1758135040598,-332.38968881,0.0002417,2]
[385921417,1758135040607,-468.15531114,0.0002417,2]
[385921418,1758135040617,-500.0,0.0002417,2]
[385921419,1758135040627,-610.44445307,0.0002417,2]
[385921420,1758135040636,-400.0,0.00024171,2]
[385921421,1758135040645,-400.0,0.00024171,2]
[385921422,1758135040655,-400.0,0.00024171,2]
[385921423,1758135040665,-400.0,0.00024171,2]
[385921424,1758135040674,-407.60739017,0.00024171,2]
[385921425,1758135040684,-400.0,0.00024171,2]
[385921426,1758135040994,-404.20226563,0.00024171,2]
[385921427,1758135041004,-400.0,0.00024171,2]
[385921428,1758135041013,-400.0,0.00024171,2]
[385921429,1758135041023,-400.0,0.00024171,2]
[385921430,1758135041032,-400.0,0.00024171,2]
[385921432,1758135041041,-400.0,0.00024171,2]
[385921434,1758135041050,-400.0,0.00024171,2]
[385921435,1758135041060,-400.0,0.00024171,2]
[385921436,1758135041069,-400.0,0.00024171,2]
[385921437,1758135041078,-400.0,0.00024171,2]
[385921438,1758135041088,-400.0,0.00024171,2]
[385921440,1758135041098,-400.0,0.00024171,2]
[385921442,1758135041109,-400.0,0.00024171,2]
[385921444,1758135041118,-400.0,0.00024171,2]
[385921446,1758135041127,-400.0,0.00024171,2]
[385921448,1758135041137,-400.0,0.00024171,2]
[385921450,1758135041146,-400.0,0.00024171,2]
[385921452,1758135041155,-400.0,0.00024171,2]
[385921454,1758135041165,-400.0,0.00024171,2]
[385921456,1758135041174,-401.80462905,0.00024171,2]
[385921458,1758135041184,-400.0,0.00024171,2]
[385921460,1758135041194,-400.0,0.00024171,2]
[385921462,1758135041203,-400.0,0.00024171,2]
[385921464,1758135041212,-400.0,0.00024171,2]
[385921466,1758135041222,-403.38603761,0.00024171,2]
[385921468,1758135041231,-400.0,0.00024171,2]
[385921470,1758135041241,-400.0,0.00024171,2]
[385921472,1758135041250,-500.0,0.00024171,2]
[385921474,1758135041260,-400.0,0.00024171,2]
[385921476,1758135041269,-400.0,0.00024171,2]
[385921478,1758135041279,-400.0,0.00024171,2]
[385921480,1758135041289,-401.4399321,0.00024171,2]
[385921482,1758135041298,-400.0,0.00024171,2]
[385921484,1758135041307,-400.0,0.00024171,2]
[385921486,1758135041316,-400.0,0.00024171,2]
[385921488,1758135041327,-400.0,0.00024171,2]
[385921490,1758135041336,-400.0,0.00024171,2]
[385921492,1758135041346,-403.29063644,0.00024171,2]
[385921494,1758135041357,-401.83070924,0.00024171,2]
[385921496,1758135041367,-400.0,0.00024171,2]
[385921498,1758135041376,-400.0,0.00024171,2]
[385921500,1758135041386,-400.0,0.00024171,2]
[385921502,1758135041396,-400.0,0.00024171,2]
[385921504,1758135041406,-400.0,0.00024171,2]
[385921506,1758135041415,-400.0,0.00024171,2]
[385921508,1758135041425,-400.0,0.00024171,2]
[385921511,1758135041434,-400.0,0.00024171,2]
[385921513,1758135041444,-400.0,0.00024171,2]
[385921515,1758135041454,-400.0,0.00024171,2]
[385921517,1758135041464,-400.0,0.00024171,2]
[385921518,1758135041473,-400.0,0.00024171,2]
[385921519,1758135041483,-411.78912561,0.00024171,2]
[385921520,1758135041493,-400.0,0.00024171,2]
[385921521,1758135041503,-400.0,0.00024171,2]
[385921522,1758135041513,-400.0,0.00024171,2]
[385921523,1758135041524,-400.0,0.00024171,2]
[385921524,1758135041534,-400.0,0.00024171,2]
[385921525,1758135041544,-400.0,0.00024171,2]
[385921526,1758135041554,-400.0,0.00024171,2]
[385921527,1758135041566,-400.0,0.00024171,2]
[385921528,1758135041576,-400.0,0.00024171,2]
[385921529,1758135041585,-400.0,0.00024171,2]
[385921530,1758135041595,-400.0,0.00024171,2]
[385921531,1758135041605,-400.0,0.00024171,2]
[385921532,1758135041616,-400.0,0.00024171,2]
[385921533,1758135041626,-400.0,0.00024171,2]
[385921534,1758135041637,-400.0,0.00024171,2]
[385921535,1758135041648,-466.31,0.00024171,2]
[385921536,1758135041659,-400.0,0.00024171,2]
[385921537,1758135041669,-400.0,0.00024171,2]
[385921538,1758135041678,-400.0,0.00024171,2]
[385921539,1758135041688,-400.0,0.00024171,2]
[385921540,1758135041699,-400.0,0.00024171,2]
[385921541,1758135041711,-400.0,0.00024171,2]
[385921542,1758135041721,-400.0,0.00024171,2]
[385921543,1758135041731,-400.0,0.00024171,2]
[385921544,1758135041741,-400.0,0.00024171,2]
[385921545,1758135041750,-400.0,0.00024171,2]
[385921546,1758135041760,-400.0,0.00024171,2]
[385921547,1758135041769,-512.03,0.00024171,2]
[385921548,1758135041779,-400.0,0.00024171,2]
[385921549,1758135041789,-400.0,0.00024171,2]
[385921550,1758135041798,-400.0,0.00024171,2]
[385921551,1758135041808,-400.0,0.00024171,2]
[385921552,1758135041818,-400.0,0.00024171,2]
[385921553,1758135041827,-400.0,0.00024171,2]
[385921554,1758135041837,-400.0,0.00024171,2]
[385921555,1758135041847,-400.0,0.00024171,2]
[385921556,1758135041856,-400.0,0.00024171,2]
[385921557,1758135041866,-400.0,0.00024171,2]
[385921558,1758135041875,-400.0,0.00024171,2]
[385921559,1758135041885,-400.0,0.00024171,2]
[385921560,1758135041894,-400.0,0.00024171,2]
[385921561,1758135041904,-400.0,0.00024171,2]
[385921562,1758135041914,-400.0,0.00024171,2]
[385921563,1758135041924,-400.0,0.00024171,2]
[385921564,1758135041933,-420.58347509,0.00024171,2]
[385921565,1758135041945,-400.0,0.00024171,2]
[385921566,1758135041954,-400.0,0.00024171,2]
[385921567,1758135041964,-405.55323994,0.00024171,2]
[385921568,1758135041974,-400.0,0.00024171,2]
[385921569,1758135041984,-400.0,0.00024171,2]
[385921570,1758135041993,-400.0,0.00024171,2]
[385921571,1758135042003,-481.59,0.00024171,2]
[385921572,1758135042013,-400.0,0.00024171,2]
[385921573,1758135042022,-400.0,0.00024171,2]
[385921574,1758135042032,-422.98,0.00024171,2]
[385921575,1758135042042,-403.73967252,0.00024171,2]
[385921576,1758135042052,-402.45309793,0.00024171,2]
[385921577,1758135042061,-400.0,0.00024171,2]
[385921578,1758135042071,-400.0,0.00024171,2]
[385921579,1758135042080,-400.0,0.00024171,2]
[385921580,1758135042090,-400.0,0.00024171,2]
[385921581,1758135042100,-400.0,0.00024171,2]
[385921582,1758135042109,-400.0,0.00024171,2]
[385921583,1758135042119,-835.48,0.00024171,2]
[385921584,1758135042129,-400.0,0.00024171,2]
[385921585,1758135042138,-400.0,0.00024171,2]
[385921586,1758135042148,-400.0,0.00024171,2]
[385921587,1758135042158,-400.0,0.00024171,2]
[385921588,1758135042167,-500.0,0.00024171,2]
[385921589,1758135042177,-400.0,0.00024171,2]
[385921590,1758135042186,-400.0,0.00024171,2]
[385921591,1758135042195,-400.0,0.00024171,2]
[385921592,1758135042205,-400.0,0.00024171,2]
[385921593,1758135042215,-400.0,0.00024171,2]
[385921594,1758135042225,-400.0,0.00024171,2]
[385921595,1758135042234,-400.0,0.00024171,2]
[385921596,1758135042244,-400.0,0.00024171,2]
[385921597,1758135042253,-400.0,0.00024171,2]
[385921598,1758135042262,-400.0,0.00024171,2]
[385921599,1758135042272,-404.70275287,0.00024171,2]
[385921600,1758135042281,-400.0,0.00024171,2]
[385921601,1758135042291,-400.0,0.00024171,2]
[385921602,1758135042300,-400.0,0.00024171,2]
[385921603,1758135042310,-400.0,0.00024171,2]
[385921604,1758135042319,-400.0,0.00024171,2]
[385921605,1758135042329,-400.0,0.00024171,2]
[385921606,1758135042338,-500.0,0.00024171,2]
[385921607,1758135042348,-400.0,0.00024171,2]
[385921608,1758135042358,-400.0,0.00024171,2]
[385921609,1758135042367,-400.0,0.00024171,2]
[385921610,1758135042376,-609.0,0.00024171,2]
[385921611,1758135042385,-401.65143923,0.00024171,2]
[385921612,1758135042395,-402.18671166,0.00024171,2]
[385921613,1758135042405,-400.0,0.00024171,2]
[385921614,1758135042414,-400.0,0.00024171,2]
[385921615,1758135042423,-400.0,0.00024171,2]
[385921616,1758135042433,-400.0,0.00024171,2]
[385921617,1758135042443,-400.0,0.00024171,2]
[385921618,1758135042452,-1000.0,0.00024171,2]
[385921619,1758135042462,-400.0,0.00024171,2]
[385921620,1758135042472,-400.0,0.00024171,2]
[385921621,1758135042481,-400.0,0.00024171,2]
[385921622,1758135042491,-400.0,0.00024171,2]
[385921623,1758135042501,-400.0,0.00024171,2]
[385921624,1758135042510,-400.0,0.00024171,2]
[385921625,1758135042520,-400.0,0.00024171,2]
[385921626,1758135042531,-400.0,0.00024171,2]
[385921627,1758135042541,-400.0,0.00024171,2]
[385921628,1758135042551,-400.0,0.00024171,2]
[385921629,1758135042561,-400.0,0.00024171,2]
[385921631,1758135042571,-400.0,0.00024171,2]
[385921633,1758135042581,-400.0,0.00024171,2]
[385921634,1758135042591,-400.0,0.00024171,2]
[385921635,1758135042603,-400.0,0.00024171,2]
[385921636,1758135042614,-400.0,0.00024171,2]
[385921637,1758135042624,-400.0,0.00024171,2]
[385921638,1758135042633,-400.0,0.00024171,2]
[385921639,1758135042643,-400.0,0.00024171,2]
[385921640,1758135042652,-400.0,0.00024171,2]
[385921641,1758135042662,-514.76226289,0.00024171,2]
[385921642,1758135042672,-400.0,0.00024171,2]
[385921644,1758135042682,-400.0,0.00024171,2]
[385921645,1758135042692,-400.0,0.00024171,2]
[385921646,1758135042705,-400.83034236,0.00024171,2]
[385921647,1758135042715,-400.0,0.00024171,2]
[385921648,1758135042724,-400.0,0.00024171,2]
[385921651,1758135042734,-400.0,0.00024171,2]
[385921652,1758135042744,-400.00369844,0.00024171,2]
[385921654,1758135042753,-26.11147124,0.00024171,2]
[385921659,1758135043296,-373.88852876,0.00024171,2]
[385921660,1758135043306,-441.02,0.00024171,2]
[385921661,1758135043315,-232.56098114,0.00024171,2]
[385921686,1758135043834,-167.43901886,0.00024171,2]
[385921688,1758135043844,-400.0,0.00024171,2]
[385921690,1758135043853,-400.0,0.00024171,2]
[385921692,1758135043863,-641.89,0.00024171,2]
[385921693,1758135043872,-425.38637742,0.00024171,2]
[385921694,1758135043881,-400.0,0.00024171,2]
[385921695,1758135043891,-400.0,0.00024171,2]
[385921696,1758135043900,-400.0,0.00024171,2]
[385921697,1758135043909,-400.0,0.00024171,2]
[385921698,1758135043918,-500.0,0.00024171,2]
[385921699,1758135043927,-400.0,0.00024171,2]
[385921700,1758135043937,-327.70944783,0.00024171,2]
[385921701,1758135043946,-400.0,0.00024171,2]
[385921702,1758135043956,-400.0,0.00024171,2]
[385921703,1758135043965,-400.0,0.00024171,2]
[385921704,1758135043974,-400.0,0.00024171,2]
[385921705,1758135043983,-400.0,0.00024171,2]
[385921706,1758135043993,-400.0,0.00024171,2]
[385921707,1758135044002,-400.0,0.00024171,2]
[385921708,1758135044011,-400.0,0.00024171,2]
[385921709,1758135044020,-400.0,0.00024171,2]
[385921710,1758135044029,-400.0,0.00024171,2]
[385921711,1758135044038,-400.0,0.00024171,2]
[385921712,1758135044048,-400.0,0.00024171,2]
[385921713,1758135044057,-400.0,0.00024171,2]
[385921714,1758135044067,-500.0,0.00024171,2]
[385921715,1758135044076,-400.0,0.00024171,2]
[385921716,1758135044086,-181.0796672,0.00024172,10]
[385921717,1758135044096,-546.59547007,0.00024172,10]
[385921718,1758135044105,-408.07927994,0.00024172,2]
[385921719,1758135044115,-400.0,0.00024172,2]
[385921720,1758135044125,-400.0,0.00024172,2]
[385921721,1758135044136,-400.0,0.00024172,2]
[385921722,1758135044145,-400.0,0.00024172,2]
[385921723,1758135044155,-400.0,0.00024172,2]
[385921724,1758135044164,-453.63,0.00024172,2]
[385921725,1758135044174,-400.0,0.00024172,2]
[385921726,1758135044183,-504.1,0.00024172,2]
[385921727,1758135044193,-675.27,0.00024172,2]
[385921728,1758135044202,-400.0,0.00024172,2]
[385921729,1758135044211,-613.63,0.00024172,2]
[385921730,1758135044220,-400.0,0.00024172,2]
[385921731,1758135044229,-535.52,0.00024172,2]
[385921732,1758135044239,-773.55,0.00024172,2]
[385921733,1758135044248,-439.66,0.00024172,2]
[385921734,1758135044257,-400.0,0.00024172,2]
[385921735,1758135044267,-400.0,0.00024172,2]
[385921736,1758135044276,-400.0,0.00024172,2]
[385921737,1758135044285,-637.26,0.00024172,2]
[385921738,1758135044294,-400.0,0.00024172,2]
[385921739,1758135044304,-519.52,0.00024172,2]
[385921740,1758135044313,-468.34,0.00024172,2]
[385921741,1758135044322,-400.0,0.00024172,2]
[385921742,1758135044331,-400.0,0.00024172,2]
[385921743,1758135044340,-400.0,0.00024172,2]
[385921744,1758135044350,-400.0,0.00024172,2]
[385921745,1758135044360,-418.18,0.00024172,2]
[385921746,1758135044370,-400.0,0.00024172,2]
[385921747,1758135044380,-542.15,0.00024172,2]
[385921748,1758135044389,-400.0,0.00024172,2]
[385921749,1758135044399,-400.0,0.00024172,2]
[385921750,1758135044408,-400.0,0.00024172,2]
[385921751,1758135044418,-400.0,0.00024172,2]
[385921752,1758135044427,-593.79,0.00024172,2]
[385921753,1758135044436,-400.0,0.00024172,2]
[385921754,1758135044445,-400.0,0.00024172,2]
[385921755,1758135044455,-400.0,0.00024172,2]
[385921756,1758135044464,-400.0,0.00024172,2]
[385921757,1758135044473,-400.0,0.00024172,2]
[385921758,1758135044483,-501.63,0.00024172,2]
[385921759,1758135044492,-400.0,0.00024172,2]
[385921760,1758135044500,-400.0,0.00024172,2]
[385921761,1758135044510,-400.0,0.00024172,2]
[385921762,1758135044519,-400.0,0.00024172,2]
[385921763,1758135044528,-772.69,0.00024172,2]
[385921764,1758135044538,-400.0,0.00024172,2]
[385921765,1758135044547,-476.26,0.00024172,2]
[385921766,1758135044556,-400.0,0.00024172,2]
[385921767,1758135044566,-400.0,0.00024172,2]
[385921768,1758135044575,-400.0,0.00024172,2]
[385921769,1758135044585,-400.0,0.00024172,2]
[385921770,1758135044595,-400.0,0.00024172,2]
[385921771,1758135044606,-400.0,0.00024172,2]
[385921772,1758135044616,-400.0,0.00024172,2]
[385921773,1758135044625,-400.0,0.00024172,2]
[385921774,1758135044634,-400.0,0.00024172,2]
[385921775,1758135044645,-400.0,0.00024172,2]
[385921776,1758135044655,-400.0,0.00024172,2]
[385921777,1758135044664,-400.0,0.00024172,2]
[385921778,1758135044674,-400.0,0.00024172,2]
[385921779,1758135044684,-400.98,0.00024172,2]
[385921780,1758135044694,-400.0,0.00024172,2]
[385921781,1758135044707,-1050.71,0.00024172,2]
[385921782,1758135044716,-400.0,0.00024172,2]
[385921783,1758135044725,-400.97196716,0.00024172,2]
[385921784,1758135044735,-402.75026436,0.00024172,2]
[385921785,1758135044746,-467.09,0.00024172,2]
[385921786,1758135044755,-400.0,0.00024172,2]
[385921787,1758135044764,-426.43,0.00024172,2]
[385921788,1758135044774,-400.0,0.00024172,2]
[385921789,1758135044784,-400.95851595,0.00024172,2]
[385921790,1758135044793,-405.78588919,0.00024172,2]
[385921791,1758135044803,-400.0,0.00024172,2]
[385921792,1758135044812,-400.0,0.00024172,2]
[385921793,1758135044822,-400.0,0.00024172,2]
[385921794,1758135044831,-400.0,0.00024172,2]
[385921795,1758135044840,-393.42073218,0.00024172,2]
[385921796,1758135044850,-175.95263933,0.00024172,2]
[385921797,1758135044859,-400.0,0.00024172,2]
[385921798,1758135044869,-400.0,0.00024172,2]
[385921799,1758135044879,-401.50142446,0.00024172,2]
[385921800,1758135044888,-400.0,0.00024172,2]
[385921801,1758135044897,-400.0,0.00024172,2]
[385921802,1758135044906,-311.60507199,0.00024172,2]
[385921803,1758135044945,-88.39492801,0.00024172,2]
[385921804,1758135044954,-400.0,0.00024172,2]
[385921805,1758135044964,-158.941075,0.00024172,2]
[385921806,1758135044973,-400.0,0.00024172,2]
[385921807,1758135044983,-1022.726765,0.00024172,2]
[385921808,1758135044993,-400.0,0.00024172,2]
[385921809,1758135045002,-1610.793374,0.00024172,2]
[385921810,1758135045012,-400.0,0.00024172,2]
[385921811,1758135045021,-400.0,0.00024172,2]
[385921812,1758135045031,-401.88315514,0.00024172,2]
[385921813,1758135045041,-400.0,0.00024172,2]
[385921814,1758135045051,-451.22,0.00024172,2]
[385921815,1758135045061,-400.05506371,0.00024172,2]
[385921816,1758135045070,-400.0,0.00024172,2]
[385921817,1758135045079,-400.0,0.00024172,2]
[385921818,1758135045088,-401.76,0.00024172,2]
[385921819,1758135045097,-365.3333,0.00024172,2]
[385921820,1758135045107,-400.47739631,0.00024172,2]
[385921821,1758135045116,-500.0,0.00024172,2]
[385921822,1758135045125,-438.96632617,0.00024172,2]
[385921823,1758135045135,-485.25,0.00024172,2]
[385921824,1758135045145,-400.0,0.00024172,2]
[385921825,1758135045154,-400.35808857,0.00024172,2]
[385921826,1758135045164,-400.0,0.00024172,2]
[385921827,1758135045173,-400.0,0.00024172,2]
[385921828,1758135045183,-400.0,0.00024172,2]
[385921829,1758135045192,-400.0,0.00024172,2]
[385921830,1758135045201,-410.39562253,0.00024172,2]
[385921831,1758135045210,-520.5,0.00024172,2]
[385921832,1758135045220,-400.0,0.00024172,2]
[385921833,1758135045229,-400.0,0.00024172,2]
[385921834,1758135045238,-500.0,0.00024172,2]
[385921835,1758135045248,-400.60494431,0.00024172,2]
[385921836,1758135045258,-400.0,0.00024172,2]
[385921837,1758135045267,-400.50385372,0.00024172,2]
[385921838,1758135045276,-400.0,0.00024172,2]
[385921839,1758135045286,-277.74387311,0.00024172,2]
[385921840,1758135045295,-400.0,0.00024172,2]
[385921841,1758135045304,-608.51,0.00024172,2]
[385921842,1758135045313,-400.0,0.00024172,2]
[385921843,1758135045323,-401.41563602,0.00024172,2]
[385921844,1758135045332,-442.05,0.00024172,2]
[385921845,1758135045342,-400.0,0.00024172,2]
[385921846,1758135045352,-400.0,0.00024172,2]
[385921847,1758135045361,-400.0,0.00024172,2]
[385921848,1758135045370,-401.93078734,0.00024172,2]
[385921849,1758135045380,-400.23943061,0.00024172,2]
[385921850,1758135045389,-1630.26,0.00024172,2]
[385921851,1758135045398,-501.48739307,0.00024172,2]
[385921852,1758135045408,-400.64425326,0.00024172,2]
[385921853,1758135045417,-408.56,0.00024172,2]
[385921854,1758135045426,-400.0,0.00024172,2]
[385921855,1758135045436,-402.8072862,0.00024172,2]
[385921856,1758135045446,-400.0,0.00024172,2]
[385921857,1758135045455,-400.0,0.00024172,2]
[385921858,1758135045465,-400.0,0.00024172,2]
[385921859,1758135045474,-483.43,0.00024172,2]
[385921861,1758135045484,-401.61976688,0.00024172,2]
[385921862,1758135045494,-400.0,0.00024172,2]
[385921863,1758135045503,-451.3,0.00024172,2]
[385921864,1758135045513,-400.0,0.00024172,2]
[385921865,1758135045522,-402.55848499,0.00024172,2]
[385921866,1758135045532,-400.0,0.00024172,2]
[385921867,1758135045541,-400.0,0.00024172,2]
[385921868,1758135045551,-400.0,0.00024172,2]
[385921869,1758135045560,-526.79,0.00024172,2]
[385921870,1758135045569,-400.0,0.00024172,2]
[385921871,1758135045578,-400.0,0.00024172,2]
[385921872,1758135045587,-400.0,0.00024172,2]
[385921874,1758135045598,-400.44153433,0.00024172,2]
[385921876,1758135045607,-400.0,0.00024172,2]
[385921877,1758135045616,-400.0,0.00024172,2]
[385921878,1758135045625,-430.08,0.00024172,2]
[385921879,1758135045634,-400.0,0.00024172,2]
[385921880,1758135045643,-400.0,0.00024172,2]
[385921881,1758135045652,-400.0,0.00024172,2]
[385921882,1758135045662,-400.0,0.00024172,2]
[385921883,1758135045671,-400.0,0.00024172,2]
[385921884,1758135045681,-529.18,0.00024172,2]
[385921885,1758135045691,-1064.47,0.00024172,2]
[385921886,1758135045703,-400.88524202,0.00024172,2]
[385921887,1758135045712,-403.64338992,0.00024172,2]
[385921888,1758135045721,-839.96,0.00024172,2]
[385921889,1758135045731,-400.0,0.00024172,2]
[385921890,1758135045740,-500.0,0.00024172,2]
[385921891,1758135045749,-400.0,0.00024172,2]
[385921892,1758135045758,-400.0,0.00024172,2]
[385921893,1758135045767,-402.38841876,0.00024172,2]
[385921894,1758135045776,-400.0,0.00024172,2]
[385921895,1758135045786,-444.37,0.00024172,2]
[385921896,1758135045795,-422.36,0.00024172,2]
[385921897,1758135045805,-400.0,0.00024172,2]
[385921898,1758135045814,-496.81,0.00024172,2]
[385921899,1758135045823,-622.52,0.00024172,2]
[385921900,1758135045832,-500.0,0.00024172,2]
[385921901,1758135045842,-445.82,0.00024172,2]
[385921902,1758135045853,-400.0,0.00024172,2]
[385921903,1758135045863,-401.87285433,0.00024172,2]
[385921904,1758135045873,-400.0,0.00024172,2]
[385921905,1758135045882,-400.0,0.00024172,2]
[385921906,1758135045892,-401.40849599,0.00024172,2]
[385921907,1758135045901,-402.10972667,0.00024172,2]
[385921908,1758135045911,-585.02,0.00024172,2]
[385921909,1758135045920,-1182.17,0.00024172,2]
[385921910,1758135045929,-493.94,0.00024172,2]
[385921911,1758135045939,-438.21,0.00024172,2]
[385921912,1758135045948,-289.28789094,0.00024172,2]
[385921913,1758135045958,-506.24941595,0.00024172,2]
[385921914,1758135045967,-415.65829129,0.00024172,2]
[385921915,1758135045977,-400.0,0.00024172,2]
[385921916,1758135045986,-400.0,0.00024172,2]
[385921917,1758135045996,-500.18,0.00024172,2]
[385921918,1758135046006,-400.0,0.00024172,2]
[385921919,1758135046016,-400.0,0.00024172,2]
[385921920,1758135046025,-400.0,0.00024172,2]
[385921921,1758135046034,-401.41923416,0.00024172,2]
[385921922,1758135046043,-517.11,0.00024172,2]
[385921923,1758135046053,-500.0,0.00024172,2]
[385921924,1758135046062,-807.95,0.00024172,2]
[385921925,1758135046071,-797.39,0.00024172,2]
[385921926,1758135046080,-400.0,0.00024172,2]
[385921927,1758135046090,-400.0,0.00024172,2]
[385921928,1758135046100,-1074.46,0.00024172,2]
[385921929,1758135046110,-458.34,0.00024172,2]
[385921930,1758135046120,-400.0,0.00024172,2]
[385921931,1758135046129,-280.0,0.00024172,2]
[385921932,1758135046139,-400.0,0.00024172,2]
[385921933,1758135046148,-637.07,0.00024172,2]
[385921934,1758135046158,-301.08344208,0.00024172,2]
[385921935,1758135046167,-402.20281384,0.00024172,2]
[385921936,1758135046178,-400.0,0.00024172,2]
[385921937,1758135046188,-400.0,0.00024172,2]
[385921938,1758135046197,-400.0,0.00024172,2]
[385921939,1758135046207,-663.09,0.00024172,2]
[385921940,1758135046216,-551.6,0.00024172,2]
[385921941,1758135046225,-400.0,0.00024172,2]
[385921942,1758135046234,-953.2,0.00024172,2]
[385921943,1758135046244,-401.63124293,0.00024172,2]
[385921944,1758135046253,-400.0,0.00024172,2]
[385921945,1758135046262,-595.17,0.00024172,2]
[385921946,1758135046272,-400.0,0.00024172,2]
[385921947,1758135046281,-400.0,0.00024172,2]
[385921948,1758135046291,-400.0,0.00024172,2]
[385921949,1758135046300,-410.4,0.00024172,2]
[385921950,1758135046309,-459.79,0.00024172,2]
[385921951,1758135046319,-404.81,0.00024172,2]
[385921952,1758135046328,-535.43,0.00024172,2]
[385921954,1758135046338,-400.0,0.00024172,2]
[385921956,1758135046347,-400.0,0.00024172,2]
[385921958,1758135046356,-407.97,0.00024172,2]
[385921960,1758135046366,-400.0,0.00024172,2]